bitfinex-derivatives/quotes_ETHF0:USTF0_20240905
["timestamp","ask_amount","ask_price","bid_price","bid_amount"]
[1725579194614,10.78751224,2367.7,2367.6,0.00633593]
[1725579194814,14.62017854,2367.7,2367.6,0.00633593]
[1725579195007,20.62017854,2367.7,2367.6,0.00633593]
[1725579196810,20.62016611,2367.7,2367.6,0.00633593]
[1725579197920,20.62016587,2367.7,2367.6,0.00633593]
[1725579198814,1.47877,2367.4,2367.3,0.098]
[1725579199017,1.47877,2367.4,2366.7,1.10686992]
[1725579199018,0.42261,2366.8,2366.7,0.3885]
[1725579199314,2.97767504,2366.8,2366.7,0.3885]
[1725579199517,2.97767597,2366.8,2366.7,0.3885]
[1725579199912,2.84915,2366.8,2366.7,0.3885]
[1725579200614,5.60653089,2366.8,2366.7,0.3885]
[1725579201313,4.54999089,2366.8,2366.7,0.3885]
[1725579201616,4.54998089,2366.9,2366.7,0.3885]
[1725579201821,1.7926,2366.9,2366.7,0.758]
[1725579202020,4.54998089,2366.9,2366.7,0.758]
[1725579202223,0.42261,2366.8,2366.7,0.758]
[1725579202519,0.42261,2366.8,2366.7,0.3885]
[1725579202520,4.54999089,2366.8,2366.7,0.3885]
[1725579202712,5.30699089,2366.8,2366.7,0.3885]
[1725579202913,2.54961,2366.8,2366.7,0.3885]
[1725579203310,5.30405947,2366.8,2366.7,0.3885]
[1725579203519,6.3526,2366.8,2366.5,0.00633593]
[1725579203724,1.79265,2366.6,2366.5,0.00633593]
[1725579203911,4.5470855,2366.6,2366.5,0.00633593]
[1725579204219,4.9240855,2366.6,2366.5,0.00633593]
[1725579204416,2.16965,2366.6,2366.5,0.00633593]
[1725579205321,2.16965,2366.6,2366.2,0.098]
[1725579205322,1.47946,2366.3,2366.2,0.098]
[1725579205518,1.47946,2366.3,2365.9,0.098]
[1725579205519,0.42275,2366.0,2365.9,0.098]
[1725579205716,1.79275,2366.0,2365.8,0.3687]
[1725579205928,0.42275,2366.0,2365.8,0.3687]
[1725579206414,1.79275,2366.1,2365.8,0.3687]
[1725579206618,1.79275,2366.1,2365.9,0.3763]
[1725579206916,1.79275,2366.1,2366.0,0.3863]
[1725579207518,2.75089315,2366.5,2366.1,0.42273]
[1725579207718,1.79267,2366.5,2366.0,4.9641]
[1725579207918,0.42267,2366.5,2366.1,0.42274]
[1725579208423,0.42267,2366.5,2366.2,0.3626]
[1725579208727,0.42267,2366.5,2366.3,0.3653]
[1725579208921,6.92046,2366.6,2366.4,0.363]
[1725579209522,6.92046,2366.6,2366.5,0.3626]
[1725579209918,11.14606,2366.6,2366.5,0.3626]
[1725579211020,7.93826,2366.6,2366.5,0.3626]
[1725579212128,3.63044,2366.7,2366.5,0.3626]
[1725579212317,0.42264,2366.7,2366.5,0.3626]
[1725579212819,0.42265,2366.6,2366.5,0.3626]
[1725579215832,3.71265,2366.6,2366.5,0.3626]
[1725579216128,0.42268,2366.4,2366.3,0.363]
[1725579216315,3.71268,2366.4,2366.3,0.7298]
[1725579216923,0.42268,2366.4,2366.3,0.7298]
[1725579217224,3.29,2366.6,2366.3,4.9554]
[1725579217528,0.42264,2366.7,2366.3,1.15249]
[1725579220225,0.42267,2366.5,2366.3,0.7298]
[1725579222631,1.17787,2366.5,2366.3,0.7298]
[1725579223433,0.78307,2366.5,2366.3,0.7298]
[1725579223732,0.42267,2366.5,2366.3,0.7298]
[1725579225840,0.42268,2366.4,2366.3,0.7298]
[1725579226130,3.71268,2366.4,2366.3,0.3668]
[1725579233244,0.392,2366.6,2366.3,0.3668]
[1725579233245,3.682,2366.6,2366.3,0.3668]
[1725579233430,0.81466,2366.6,2366.3,0.3668]
[1725579234836,0.81466,2366.6,2366.3,0.7895]
[1725579235635,0.81466,2366.6,2366.3,0.3668]
[1725579237847,0.42267,2366.5,2366.3,0.3668]
[1725579238339,0.81466,2366.6,2366.3,0.7895]
[1725579238934,0.392,2366.6,2366.2,3.2078]
[1725579239140,6.04089315,2366.4,2366.0,0.098]
[1725579239338,0.42275,2366.1,2365.9,0.7463]
[1725579239539,0.3917,2366.0,2365.9,0.7463]
[1725579240440,0.81445,2366.0,2365.9,0.3591]
[1725579240741,6.43259315,2366.0,2365.7,0.00633593]
[1725579241149,6.85536315,2366.0,2365.7,0.00633593]
[1725579242645,3.14259315,2366.0,2365.7,0.00633593]
[1725579242837,0.81446,2366.0,2365.7,0.00633593]
[1725579243444,3.56535315,2366.0,2365.7,0.00633593]
[1725579244140,0.81446,2366.0,2365.7,0.00633593]
[1725579244342,3.56535315,2366.0,2365.7,0.00633593]
[1725579248659,0.81446,2366.0,2365.7,0.00633593]
[1725579249254,3.56535315,2366.0,2365.7,0.00633593]
[1725579249450,0.42278,2365.9,2365.7,0.00633593]
[1725579249661,0.81446,2366.0,2365.7,0.00633593]
[1725579250458,0.81446,2366.0,2365.7,0.42914593]
[1725579252756,0.81446,2366.0,2365.7,0.00633593]
[1725579253553,0.81447,2366.0,2365.7,0.00633593]
[1725579253874,0.3819,2365.9,2365.7,0.00633593]
[1725579254056,1.7519,2365.9,2365.7,0.00633593]
[1725579254258,2.17468,2365.9,2365.7,0.00633593]
[1725579254565,2.54218,2365.9,2365.7,0.00633593]
[1725579255461,2.1194,2365.9,2365.7,0.42914593]
[1725579256061,2.75089315,2366.1,2366.0,0.42275]
[1725579256363,2.75089315,2366.3,2366.2,0.42272]
[1725579256557,2.75089315,2366.3,2365.9,3.2078]
[1725579256558,5.62587315,2366.4,2366.1,41.95953]
[1725579256759,2.4523,2366.4,2366.2,0.42272]
[1725579257061,5.20319315,2366.4,2366.2,0.42272]
[1725579257556,5.62587315,2366.4,2366.2,0.42272]
[1725579257960,4.25587315,2366.4,2366.2,0.42272]
[1725579258159,4.25587315,2366.4,2366.1,1.15953]
[1725579258360,3.83319315,2366.4,2366.2,0.42271]
[1725579259065,1.0823,2366.4,2366.2,0.42271]
[1725579259866,1.50499,2366.4,2366.2,0.42271]
[1725579260070,1.50499,2366.4,2366.1,1.15952]
[1725579260268,4.25588315,2366.4,2366.1,1.15952]
[1725579260663,1.50499,2366.4,2366.1,1.15952]
[1725579261061,0.4227,2366.3,2366.1,1.15952]
[1725579262355,4.25589315,2366.4,2366.1,1.15952]
[1725579262865,4.25589315,2366.4,2366.1,0.7368]
[1725579263067,4.26487396,2366.4,2366.1,0.7368]
[1725579263257,3.84217396,2366.4,2366.1,0.7368]
[1725579263466,3.71272,2366.2,2366.1,0.3723]
[1725579263766,0.42275,2366.1,2365.8,0.87848]
[1725579263966,0.78335,2366.1,2365.9,0.3569]
[1725579264864,0.3606,2366.1,2365.9,0.3569]
[1725579265061,0.3606,2366.1,2366.0,0.42275]
[1725579265271,2.75987396,2366.3,2366.1,0.42273]
[1725579265571,0.42271,2366.3,2366.0,0.42275]
[1725579266766,3.18258396,2366.3,2366.0,0.42275]
[1725579267270,0.42272,2366.2,2366.0,0.42275]
[1725579269461,0.42275,2366.0,2365.9,0.3569]
[1725579269665,0.42275,2366.0,2365.7,0.82053593]
[1725579269666,3.71275,2366.0,2365.7,0.82053593]
[1725579269866,0.7398,2365.9,2365.7,1.20293593]
[1725579270271,0.7398,2365.9,2365.7,0.81153593]
[1725579270467,0.7398,2365.9,2365.7,0.38873593]
[1725579270468,0.3644,2365.8,2365.7,0.38873593]
[1725579270776,0.3644,2365.8,2365.7,0.00633593]
[1725579270777,0.78719,2365.8,2365.7,0.00633593]
[1725579271071,4.07719,2365.8,2365.7,0.00633593]
[1725579273668,6.83706396,2365.8,2365.7,0.00633593]
[1725579275774,11.06426396,2365.8,2365.7,0.00633593]
[1725579275977,8.30439,2365.8,2365.7,0.00633593]
[1725579276580,11.06202354,2365.8,2365.7,0.00633593]
[1725579277080,8.30439,2365.8,2365.7,0.00633593]
[1725579277277,11.06203721,2365.8,2365.7,0.00633593]
[1725579277981,9.14203721,2365.8,2365.7,0.00633593]
[1725579278677,4.91483721,2365.8,2365.7,0.00633593]
[1725579280279,2.15719,2365.8,2365.7,0.00633593]
[1725579280480,4.91428145,2365.8,2365.7,0.00633593]
[1725579282080,2.15719,2365.8,2365.7,0.00633593]
[1725579282479,4.91482679,2365.8,2365.7,0.00633593]
[1725579283677,2.15719,2365.8,2365.7,0.00633593]
[1725579286985,2.15719,2365.8,2365.3,0.4796]
[1725579286986,9.1694,2365.8,2365.3,0.4796]
[1725579287175,1.79286,2365.4,2365.3,0.3816]
[1725579287577,0.42288,2365.3,2365.2,3.2078]
[1725579288078,3.18040011,2365.3,2365.2,3.2078]
[1725579288479,0.42288,2365.3,2365.2,3.2078]
[1725579290885,0.42288,2365.3,2365.1,0.3844]
[1725579291079,1.37,2365.2,2365.1,0.3844]
[1725579292779,1.7929,2365.2,2365.1,0.3844]
[1725579294581,1.37,2365.2,2365.1,0.3844]
[1725579295385,1.7929,2365.2,2365.1,0.3844]
[1725579296784,1.37,2365.2,2365.1,0.3844]
[1725579298285,1.37,2365.2,2365.1,0.80732]
[1725579298482,1.37,2365.2,2365.1,0.3844]
[1725579303294,1.37,2365.2,2365.1,0.80732]
[1725579304297,0.42918593,2365.5,2365.2,0.42289]
[1725579304496,1.37,2365.4,2365.3,0.7411]
[1725579305296,1.37,2365.4,2365.3,1.16398]
[1725579306795,1.37633593,2365.5,2365.4,0.42286]
[1725579307196,0.00633593,2365.5,2365.4,0.80806]
[1725579307389,0.00633593,2365.5,2365.4,11.03526]
[1725579307595,0.098,2365.8,2365.7,0.42281]
[1725579307796,1.37,2365.8,2365.6,3.63062]
[1725579308001,1.37,2365.8,2365.7,1.1298]
[1725579309504,1.37,2365.8,2365.7,1.55261]
[1725579311705,1.37633593,2366.0,2365.7,1.1298]
[1725579312207,1.37633593,2366.0,2365.9,0.42277]
[1725579314697,1.37633593,2366.0,2365.8,0.42278]
[1725579314908,1.37633593,2366.0,2365.9,0.42277]
[1725579315821,1.37633593,2366.0,2365.8,0.42279]
[1725579316809,1.37633593,2366.0,2365.7,1.1298]
[1725579317013,1.37633593,2366.0,2365.9,0.42277]
[1725579319517,1.37633593,2366.0,2365.8,0.42278]
[1725579320223,1.37633593,2366.0,2365.7,0.7631]
[1725579320518,1.37633593,2366.0,2365.5,40.8]
[1725579320519,1.7928,2365.8,2365.5,0.80634]
[1725579320712,1.7928,2365.8,2365.5,0.80633]
[1725579320911,1.37,2365.8,2365.6,0.42283]
[1725579321411,1.37,2365.8,2365.5,0.3835]
[1725579321412,1.37,2365.8,2365.7,0.42281]
[1725579321811,1.37,2365.8,2365.6,0.42281]
[1725579322016,1.37,2365.8,2365.7,0.42281]
[1725579322218,2.4879,2365.9,2365.8,0.42279]
[1725579322420,0.00633593,2366.0,2365.9,0.42277]
[1725579324923,0.00633593,2366.0,2365.8,0.7534]
[1725579325117,0.00633593,2366.0,2365.9,0.42277]
[1725579326520,0.00633593,2366.0,2365.8,1.17618]
[1725579326722,0.39413593,2366.0,2365.8,1.17618]
[1725579327025,0.39413593,2366.0,2365.9,0.42277]
[1725579327619,0.00633593,2366.0,2365.9,0.42277]
[1725579329120,0.098,2366.4,2366.3,0.4227]
[1725579329319,3.2078,2366.5,2366.4,0.42268]
[1725579330725,6.13715012,2366.7,2366.6,0.42265]
[1725579330929,6.13715012,2366.7,2366.6,3.63045]
[1725579331226,0.00633593,2366.7,2366.6,3.63045]
[1725579331422,0.00633593,2366.7,2366.6,7.85605]
[1725579332220,0.00633593,2366.7,2366.6,7.4334]
[1725579333427,0.00633593,2366.7,2366.6,7.85605]
[1725579334233,0.00633593,2366.7,2366.6,7.4334]
[1725579335030,0.098,2367.0,2366.9,0.42259]
[1725579335344,0.098,2367.3,2366.9,7.4326]
[1725579335528,0.098,2367.5,2367.3,0.42252]
[1725579335834,2.493,2367.6,2367.3,0.42252]
[1725579336930,1.123,2367.6,2367.3,0.42252]
[1725579338031,1.54547,2367.6,2367.2,3.5902]
[1725579338237,1.37,2367.4,2367.0,0.42257]
[1725579338430,1.37,2367.4,2367.1,0.42256]
[1725579338636,1.79251,2367.4,2367.0,0.80137]
[1725579339137,1.79251,2367.4,2367.1,0.42256]
[1725579339331,0.3742,2367.3,2367.1,0.42256]
[1725579339527,0.79672,2367.3,2367.0,0.80137]
[1725579340329,3.29,2367.2,2366.9,3.2078]
[1725579340529,0.7298,2367.1,2366.9,3.2078]
[1725579341240,0.3742,2367.0,2366.9,3.2078]
[1725579341431,0.3742,2367.0,2366.8,3.63041]
[1725579347340,0.3742,2367.0,2366.8,0.42261]
[1725579349940,0.3742,2367.0,2366.7,0.3788]
[1725579350145,0.79678,2367.0,2366.7,0.80142]
[1725579350448,0.79678,2367.0,2366.9,0.42259]
[1725579350449,0.3742,2367.0,2366.9,0.42259]
[1725579350651,0.098,2367.5,2367.1,0.42255]
[1725579350950,0.79963,2367.3,2367.0,0.81076]
[1725579351148,0.42254,2367.2,2367.0,0.42256]
[1725579351553,0.3724,2367.1,2367.0,0.42256]
[1725579352249,0.3724,2367.1,2366.9,3.63039]
[1725579353753,0.3724,2367.1,2367.0,0.42258]
[1725579356751,0.3724,2367.1,2366.9,3.63039]
[1725579357452,0.3724,2367.1,2367.0,0.42258]
[1725579358751,0.3724,2367.1,2367.0,3.63038]
[1725579359749,0.3724,2367.1,2367.0,0.42258]
[1725579359949,0.79963,2367.3,2367.0,3.63038]
[1725579360159,1.19143,2367.3,2367.0,3.63038]
[1725579360454,1.19143,2367.3,2367.1,0.3586]
[1725579362856,0.42261,2366.9,2366.7,3.2078]
[1725579363056,0.42261,2366.9,2366.7,3.5648]
[1725579363456,0.42259,2367.0,2366.7,3.98743]
[1725579363660,0.4226,2366.9,2366.7,3.5648]
[1725579363866,0.42261,2366.8,2366.7,0.357]
[1725579364054,0.42263,2366.7,2366.5,1.37]
[1725579364258,1.1134,2366.7,2366.5,1.79267]
[1725579364454,1.1134,2366.7,2366.6,0.357]
[1725579364855,1.53603,2366.7,2366.6,0.357]
[1725579365058,0.42267,2366.5,2366.4,3.2078]
[1725579365262,0.4227,2366.3,2366.2,0.00633593]
[1725579365458,5.0005,2366.3,2366.2,0.00633593]
[1725579365659,15.2269,2366.3,2366.2,0.00633593]
[1725579365857,12.3847,2366.3,2366.2,0.00633593]
[1725579366058,11.0147,2366.3,2366.2,0.00633593]
[1725579368761,15.36146,2366.3,2366.2,0.00633593]
[1725579369864,15.36146,2366.3,2365.9,0.098]
[1725579370061,15.36146,2366.3,2365.4,0.3824]
[1725579370062,0.42283,2365.6,2365.5,0.4719]
[1725579370261,1.05694,2365.9,2365.0,3.3058]
[1725579370262,0.42288,2365.3,2365.0,3.3058]
[1725579370464,0.42287,2365.4,2365.1,0.3739]
[1725579370661,0.81375,2365.5,2365.1,0.79681]
[1725579371064,0.82008593,2365.5,2365.1,0.80314593]
[1725579373572,0.82008593,2365.5,2365.2,0.4229]
[1725579374170,0.39723593,2365.5,2365.2,0.4229]
[1725579374967,0.00633593,2365.5,2365.4,0.42286]
[1725579375165,0.00633593,2365.5,2365.4,4.47366]
[1725579375475,0.00633593,2365.5,2365.4,14.70086]
[1725579375868,0.00633593,2365.5,2365.4,55.50086]
[1725579376266,0.098,2365.9,2365.8,0.42279]
[1725579376481,0.3586,2366.0,2365.7,3.6306]
[1725579376874,0.3586,2366.0,2365.8,0.42279]
[1725579377282,0.3586,2366.0,2365.9,0.3569]
[1725579378971,0.78135,2366.0,2365.9,0.3569]
[1725579379374,0.78135,2366.0,2365.7,3.2078]
[1725579379375,0.42277,2365.9,2365.7,3.2078]
[1725579379583,0.78057,2365.9,2365.7,0.3908]
[1725579380378,0.4228,2365.8,2365.4,0.80875]
[1725579380683,0.4228,2365.8,2365.5,0.3908]
[1725579381178,0.3578,2365.9,2365.5,0.3908]
[1725579381384,0.37,2365.7,2365.3,3.2078]
[1725579381572,0.42284,2365.6,2365.3,3.2078]
[1725579381769,0.42285,2365.5,2365.3,3.2078]
[1725579381974,0.79475,2365.5,2365.3,3.2078]
[1725579384080,0.42286,2365.4,2365.3,3.2078]
[1725579384971,0.79476,2365.5,2365.3,3.2078]
[1725579385175,0.3719,2365.5,2365.3,3.2078]
[1725579385378,0.3719,2365.5,2365.3,3.63068]
[1725579386185,0.3719,2365.5,2365.3,3.2078]
[1725579386492,0.79475,2365.5,2365.3,3.2078]
[1725579386680,0.37,2365.7,2365.4,0.42286]
[1725579386880,0.3863,2365.8,2365.3,3.5696]
[1725579387086,0.3863,2365.8,2365.5,0.42283]
[1725579387384,0.3863,2365.8,2365.6,0.80073]
[1725579387585,0.42277,2366.0,2365.7,0.3941]
[1725579387779,0.42277,2365.9,2365.7,0.3941]
[1725579390278,2.15764593,2366.1,2365.8,0.42278]
[1725579390585,1.20114,2366.1,2365.8,0.42278]
[1725579391886,0.42276,2366.0,2365.7,0.8169]
[1725579396699,0.42277,2365.9,2365.7,0.3941]
[1725579397093,3.29,2366.0,2365.3,0.4598]
[1725579397298,0.42281,2365.7,2365.4,0.78615]
[1725579397491,0.42284,2365.5,2365.4,0.3633]
[1725579397795,0.42284,2365.5,2365.2,3.2078]
[1725579397989,0.42286,2365.4,2365.3,0.3633]
[1725579399196,0.42286,2365.5,2365.3,0.3633]
[1725579399796,0.42286,2365.4,2365.3,0.3633]
[1725579399997,0.81506,2365.4,2365.3,0.3633]
[1725579400503,0.3922,2365.4,2365.3,0.3633]
[1725579400899,0.7685,2365.6,2365.3,0.78617]
[1725579401286,1.19133,2365.6,2365.3,0.78617]
[1725579404296,2.75752011,2365.9,2365.3,0.3633]
[1725579404499,0.4228,2365.8,2365.5,0.42283]
[1725579405006,0.4228,2365.8,2365.5,41.22283]
[1725579405498,0.4228,2365.8,2365.5,0.42283]
[1725579406906,0.42279,2365.8,2365.5,0.42283]
[1725579407404,0.42281,2365.7,2365.5,0.42283]
[1725579407602,0.42281,2365.7,2365.4,0.81165]
[1725579409100,3.18033011,2365.7,2365.4,0.81165]
[1725579410501,2.75752011,2365.6,2365.4,0.81165]
[1725579411598,2.75752011,2365.6,2365.5,0.42284]
[1725579412014,2.75752011,2365.6,2365.4,0.81165]
[1725579415404,2.75752011,2365.6,2365.5,0.42284]
[1725579416107,0.42281,2365.7,2365.5,0.42284]
[1725579416309,2.76047242,2365.6,2365.5,0.42284]
[1725579416505,0.42281,2365.7,2365.5,0.42284]
[1725579418398,1.37,2365.7,2365.3,3.5711]
[1725579418605,3.18341375,2365.4,2365.3,3.5711]
[1725579419713,2.76055375,2365.4,2365.3,3.5711]
[1725579419902,2.76055375,2365.4,2365.3,3.99398]
[1725579420106,3.14875375,2365.5,2365.4,0.42286]
[1725579420307,2.76055375,2365.6,2365.4,0.42286]
[1725579420508,2.76049964,2365.6,2365.5,0.3941]
[1725579420711,0.42282,2365.7,2365.5,0.81694]
[1725579420904,2.75987198,2365.6,2365.5,0.81694]
[1725579422309,2.75987198,2365.6,2365.5,0.3941]
[1725579422511,0.42283,2365.6,2365.4,0.42285]
[1725579422716,2.75994917,2365.5,2365.4,0.42285]
[1725579423403,0.42284,2365.5,2365.3,3.5711]
[1725579423609,4.32753658,2365.4,2365.3,3.5711]
[1725579423807,4.32753658,2365.4,2365.3,3.2078]
[1725579424313,3.90467658,2365.4,2365.3,3.2078]
[1725579424514,1.1453,2365.4,2365.3,3.2078]
[1725579426421,3.90467658,2365.4,2365.3,3.2078]
[1725579426720,3.90467658,2365.4,2365.3,3.63068]
[1725579427314,4.92084355,2365.8,2365.4,0.42286]
[1725579427315,2.75937658,2365.5,2365.4,0.42286]
[1725579427514,2.75937658,2365.6,2365.5,0.80914]
[1725579429023,3.73464875,2365.8,2365.6,0.42282]
[1725579429222,3.73464875,2365.8,2365.7,0.3927]
[1725579429514,3.44040979,2365.8,2365.7,0.81551]
[1725579429709,0.12856104,2365.8,2365.7,0.81551]
[1725579429911,6.21931875,2365.9,2365.7,0.81551]
[1725579430117,0.12854967,2365.8,2365.7,0.81551]
[1725579430315,0.12854511,2365.8,2365.7,0.81551]
[1725579430723,3.67954875,2365.9,2365.8,0.42279]
[1725579431027,0.95650593,2366.0,2365.9,0.42277]
[1725579431208,0.95650593,2366.0,2365.7,0.3927]
[1725579431209,2.75948087,2366.1,2366.0,0.42275]
[1725579431413,2.75948087,2366.1,2365.9,0.42276]
[1725579431607,2.75948087,2366.0,2365.9,0.42276]
[1725579432723,2.75948087,2366.0,2365.8,0.79168]
[1725579433020,2.75948087,2366.0,2365.9,0.42277]
[1725579433221,2.75948087,2366.0,2365.8,0.79168]
[1725579433915,2.75948087,2366.0,2365.9,0.42277]
[1725579435223,2.75948087,2366.1,2365.9,0.42277]
[1725579435426,0.3762,2366.2,2366.1,0.42274]
[1725579435427,2.75948087,2366.2,2366.1,0.42274]
[1725579435718,2.75948087,2366.2,2366.1,3.63054]
[1725579435920,2.75948087,2366.3,2366.1,3.98714]
[1725579436118,3.18218087,2366.3,2366.1,3.5644]
[1725579436318,3.18218087,2366.3,2366.1,3.2078]
[1725579436319,0.42272,2366.2,2366.1,3.2078]
[1725579436615,0.42272,2366.2,2365.9,0.42276]
[1725579436616,2.75948087,2366.2,2365.9,0.3566]
[1725579436817,2.0884,2366.1,2365.9,0.3566]
[1725579437022,0.3603,2366.1,2365.9,0.3566]
[1725579437522,0.3603,2366.1,2365.9,0.77936]
[1725579437920,0.3603,2366.1,2366.0,0.42275]
[1725579439715,0.3603,2366.1,2365.9,0.77936]
[1725579440818,2.75948087,2366.2,2366.1,0.42274]
[1725579441022,2.85748087,2366.6,2366.1,8.8042]
[1725579441219,3.49248087,2366.7,2366.6,0.42265]
[1725579441421,0.4677,2366.8,2366.5,3.63045]
[1725579441422,2.75948087,2366.8,2366.5,3.63045]
[1725579441616,3.13468087,2366.8,2366.6,0.3633]
[1725579441812,0.3752,2366.8,2366.6,0.78594]
[1725579442420,0.3752,2366.8,2366.6,1.14824]
[1725579442619,0.79781,2366.8,2366.6,0.7256]
[1725579442813,0.3752,2366.8,2366.6,0.78594]
[1725579443125,0.4226,2366.9,2366.6,0.78594]
[1725579443331,0.8093,2366.9,2366.6,0.78594]
[1725579444926,0.8093,2366.9,2366.6,0.3633]
[1725579445726,0.8093,2366.9,2366.6,0.78595]
[1725579446415,0.42261,2366.8,2366.6,0.3633]
[1725579446616,0.42261,2366.8,2366.5,3.63046]
[1725579446817,0.7485,2366.7,2366.5,3.2078]
[1725579447016,0.7485,2366.7,2366.5,3.63046]
[1725579447720,0.42265,2366.6,2366.4,0.00633593]
[1725579449516,3.71267,2366.5,2366.4,0.00633593]
[1725579449919,7.93827,2366.5,2366.4,0.00633593]
[1725579457826,8.99494,2366.5,2366.4,0.00633593]
[1725579459130,4.64827,2366.5,2366.4,0.00633593]
[1725579459326,0.42267,2366.5,2366.4,0.00633593]
[1725579461335,6.71578087,2366.7,2366.5,0.42266]
[1725579461543,6.71578087,2366.7,2366.6,0.3805]
[1725579461544,3.9563,2366.7,2366.6,0.3805]
[1725579462729,3.14618087,2366.9,2366.6,0.3805]
[1725579463037,4.90958087,2367.1,2366.7,0.42261]
[1725579463227,1.79258,2367.0,2366.6,4.01094]
[1725579463636,1.79258,2367.0,2366.6,0.80314]
[1725579466542,0.4226,2366.9,2366.6,0.80314]
[1725579466932,1.79259,2367.0,2366.6,0.80314]
[1725579467236,0.42259,2367.0,2366.6,0.80314]
[1725579467440,4.12948087,2367.1,2366.9,0.42259]
[1725579467636,4.12948087,2367.1,2367.0,0.3648]
[1725579467637,1.79256,2367.1,2367.0,0.3648]
[1725579467830,1.37,2367.1,2367.0,0.3648]
[1725579468035,1.79256,2367.1,2367.0,0.3648]
[1725579468242,1.37,2367.1,2367.0,0.3648]
[1725579469544,1.79256,2367.1,2367.0,0.3648]
[1725579469746,1.37,2367.1,2367.0,0.3648]
[1725579472136,1.79256,2367.1,2367.0,0.3648]
[1725579473344,1.37,2367.1,2367.0,0.3648]
[1725579475043,1.79256,2367.1,2367.0,0.3648]
[1725579475442,4.55204087,2367.1,2367.0,0.3648]
[1725579475642,1.79256,2367.1,2367.0,0.3648]
[1725579476141,2.75948087,2367.3,2367.0,4.5896]
[1725579476443,2.75948087,2367.5,2367.3,0.42252]
[1725579476748,2.63157,2367.6,2367.4,0.7605]
[1725579476749,5.29305087,2367.6,2367.4,0.7605]
[1725579477143,1.37,2367.6,2367.4,1.183]
[1725579477451,0.098,2367.8,2367.6,0.42246]
[1725579477648,3.18190087,2367.9,2367.6,0.42246]
[1725579477842,0.42242,2367.9,2367.5,0.78748]
[1725579478243,1.79244,2367.8,2367.5,0.78748]
[1725579478847,1.37,2367.8,2367.5,0.365]
[1725579479041,1.79245,2367.8,2367.5,0.365]
[1725579479949,0.42245,2367.8,2367.5,0.365]
[1725579480146,9.99838087,2368.0,2367.5,0.365]
[1725579480339,3.29,2367.7,2367.4,0.7605]
[1725579480538,0.42249,2367.5,2367.4,0.7605]
[1725579480850,3.71249,2367.5,2367.4,0.7605]
[1725579481047,3.71249,2367.5,2367.4,0.3755]
[1725579481555,7.514,2367.5,2367.1,0.3777]
[1725579481742,0.42253,2367.3,2367.1,0.7712]
[1725579482143,3.29,2367.5,2367.1,0.7712]
[1725579482642,4.94599087,2367.6,2367.1,0.3935]
[1725579482643,0.42254,2367.2,2367.1,0.3935]
[1725579482847,3.29,2367.3,2366.8,3.6304]
[1725579483041,0.42256,2367.1,2366.9,0.3935]
[1725579483241,1.56965,2367.2,2366.9,0.3935]
[1725579485943,0.42256,2367.1,2366.9,0.3935]
[1725579486147,0.42258,2367.0,2366.9,0.3935]
[1725579486650,0.42257,2367.1,2366.9,0.3935]
[1725579487249,1.56965,2367.2,2366.9,0.3935]
[1725579487649,0.42256,2367.1,2366.9,0.3935]
[1725579494848,1.1471,2367.2,2366.9,0.3935]
[1725579495049,0.42257,2367.1,2366.9,0.3935]
[1725579497848,0.42257,2367.1,2366.6,0.87654]
[1725579497849,0.42259,2366.9,2366.6,0.87654]
[1725579498056,0.42259,2366.9,2366.6,0.77854]
[1725579498656,0.42258,2367.0,2366.7,0.42262]
[1725579499059,0.42258,2367.0,2366.8,0.3707]
[1725579501159,7.11438087,2367.2,2366.8,0.3707]
[1725579501362,0.42256,2367.1,2366.9,0.3624]
[1725579501859,0.42256,2367.1,2367.0,0.3923]
[1725579502958,2.93965,2367.2,2367.0,0.3923]
[1725579503551,5.69913087,2367.2,2367.0,0.3923]
[1725579503966,0.42256,2367.1,2367.0,0.3923]
[1725579504153,5.69913087,2367.2,2367.0,0.3923]
[1725579504465,3.90658087,2367.2,2367.0,0.81488]
[1725579504650,0.394,2367.2,2367.0,0.81488]
[1725579504956,0.42254,2367.2,2367.0,0.81487]
[1725579505161,3.57081087,2367.3,2367.0,0.81487]
[1725579505953,3.57082087,2367.3,2367.0,0.81487]
[1725579506158,0.42254,2367.2,2367.0,0.81487]
[1725579506465,2.75948087,2367.2,2367.0,0.81487]
[1725579507063,3.18202087,2367.2,2367.0,0.81487]
[1725579507259,3.18202087,2367.2,2367.0,0.3923]
[1725579507565,2.75948087,2367.1,2367.0,0.3923]
[1725579509467,4.90883087,2367.2,2367.0,0.3923]
[1725579509655,2.75948087,2367.1,2367.0,0.3923]
[1725579509858,4.90883087,2367.2,2367.0,0.3923]
[1725579510566,3.53883087,2367.2,2367.0,0.3923]
[1725579511161,2.75948087,2367.1,2367.0,0.3923]
[1725579511570,3.53883087,2367.2,2367.0,0.3923]
[1725579512364,2.75948087,2367.1,2366.8,3.5785]
[1725579512571,3.54716087,2367.0,2366.7,0.3558]
[1725579512762,0.3579,2366.9,2366.7,0.77843]
[1725579513366,0.7152,2366.9,2366.7,0.77843]
[1725579513963,0.7152,2366.9,2366.7,0.3558]
[1725579514368,3.47468087,2366.9,2366.7,0.77843]
[1725579515968,3.47468087,2366.9,2366.7,0.3558]
[1725579516377,3.89728087,2366.9,2366.7,0.3558]
[1725579518267,3.47468087,2366.9,2366.7,0.3558]
[1725579519779,3.89728087,2366.9,2366.7,0.3558]
[1725579520482,3.47468087,2366.9,2366.7,0.77842]
[1725579520684,0.7152,2366.9,2366.7,0.77842]
[1725579522383,3.47468087,2366.9,2366.7,0.77842]
[1725579522984,0.7152,2366.9,2366.7,0.77842]
[1725579523586,3.47468087,2366.9,2366.7,0.77842]
[1725579525178,3.47468087,2366.9,2366.8,0.42261]